{"text_format":"3","workbook":"xlsx","n_sheets":8,"sheets":["4 кл","5 кл.","6 кл.","7 кл.","8 кл.","9 кл.","10 кл.","11 кл."],"not_rendered":{"external_links":1},"read":"whole","date_system":"1900"}

{"sheet":"4 кл","index":0,"n_rows":8,"n_cols":14,"rows_kept":8,"merged":[[0,0,0,8]]}
["Итоговый протокол по итогам муниципального этапа ВсОШ/РОШ  по предмету татарский язык                                                                                                     Лаишевского муниципального района в 2018-2019 учебном году                                                 \n"]
[]
["№ п/п","Муниципалитет","Полное наименование образовательного учреждения (по уставу)","шифр","Класс","Дата рождения","Пол","Балл","Апеляционный балл","Итоговый балл","Максимальный балл","Статус","Фамилия, имя, отчество педагога, подготовившего участника олимпиады","Полное наименование образовательного учреждения (по уставу)"]
[{"$f":"'[1]4 кл'!A4","v":1},{"$f":"'[1]4 кл'!B4","v":"Лаишевский"},{"$f":"'[1]4 кл'!C4","v":"Муниципальное бюджетное общеобразовательное учреждение \"Тат.Янтыковская основная общеобразовательная школа\" Лаишевского муниципального района Республики Татарстан"},"ТЯ2141",{"$f":"'[1]4 кл'!G4","v":4},"2008-10-23",{"$f":"'[1]4 кл'!I4","v":"ж"},35,null,35,54,"призер",{"$f":"'[1]4 кл'!J4","v":"Габидуллина Флуса Рагиповна"},{"$f":"'[1]4 кл'!K4","v":"Муниципальное бюджетное общеобразовательное учреждение \"Тат.Янтыковская основная общеобразовательная школа\" Лаишевского муниципального района Республики Татарстан"}]
[{"$f":"'[1]4 кл'!A5","v":2},{"$f":"'[1]4 кл'!B5","v":"Лаишевский "},{"$f":"'[1]4 кл'!C5","v":"Муниципальное бюджетное общеобразовательное учреждение \"Малоелгинская средняя общеобразовательная школа\" "},"ТЯ2142",{"$f":"'[1]4 кл'!G5","v":4},"2008-06-09",{"$f":"'[1]4 кл'!I5","v":"жен"},36,null,36,54,"победитель",{"$f":"'[1]4 кл'!J5","v":"Кадыйрова Райхана Наилевна"},{"$f":"'[1]4 кл'!K5","v":"Муниципальное бюджетное общеобразовательное учреждение \"Малоелгинская средняя общеобразовательная школа\" "}]
[{"$f":"'[1]4 кл'!A6","v":3},{"$f":"'[1]4 кл'!B6","v":"Лаишевский"},{"$f":"'[1]4 кл'!C6","v":"Муницмпальное бюджетное  общеобразовательное учереждение \"Кирбинская средняя общеобразовательная школа\""},"ТЯ2143",{"$f":"'[1]4 кл'!G6","v":4},"2008-04-28",{"$f":"'[1]4 кл'!I6","v":"женский"},35,null,35,54,"призер",{"$f":"'[1]4 кл'!J6","v":"Сафина Ляйля Зарифовна"},{"$f":"'[1]4 кл'!K6","v":"Муницмпальное бюджетное  общеобразовательное учереждение \"Кирбинская средняя общеобразовательная школа\""}]
[{"$f":"'[1]4 кл'!A7","v":4},{"$f":"'[1]4 кл'!B7","v":"Лаишевский"},{"$f":"'[1]4 кл'!C7","v":"Муниципальное бюджетное общеобразовательное учреждение \"Именьковская средняя общеобразовательная школа\""},"ТЯ2144",{"$f":"'[1]4 кл'!G7","v":4},"2008-12-02",{"$f":"'[1]4 кл'!I7","v":"жен"},19,null,19,54,"участник",{"$f":"'[1]4 кл'!J7","v":"Мухаметзянова ГМ"},{"$f":"'[1]4 кл'!K7","v":"Муниципальное бюджетное общеобразовательное учреждение \"Именьковская средняя общеобразовательная школа\""}]
[5,"Лаишевский","Муниципальное бюджетное общеобразовательное учреждение \"Пелевская средняя общеобразовательная школа\" Лаишевского муниципального райоана РТ","ТЯ2145",4,"2008-06-30","м",28,null,28,54,"призер","Шагитова Лейсан Равиловна",{"$f":"$C$8","v":"Муниципальное бюджетное общеобразовательное учреждение \"Пелевская средняя общеобразовательная школа\" Лаишевского муниципального райоана РТ"}]

{"sheet":"5 кл.","index":1,"n_rows":8,"n_cols":14,"rows_kept":8,"merged":[[0,0,0,8]]}
["Итоговый протокол по итогам муниципального этапа ВсОШ/РОШ  по предмету татарский язык                                                                                                     Лаишевского муниципального района в 2018-2019 учебном году                                                 \n"]
[]
["№ п/п","Муниципалитет","Полное наименование образовательного учреждения (по уставу)","шифр","Класс","Дата рождения","Пол","Балл","Апеляционный балл","Итоговый балл","Максимальный балл","Статус","Фамилия, имя, отчество педагога, подготовившего участника олимпиады","Полное наименование образовательного учреждения (по уставу)"]
[{"$f":"'[1]5 кл.'!A4","v":1},{"$f":"'[1]5 кл.'!B4","v":"Лаишевский"},{"$f":"'[1]5 кл.'!C4","v":"Муниципальное бюджетное общеобразовательное учреждение \"Пелевская средняя общеобразовательная школа\" Лаишевского муниципального района Республики Татарстан"},"ТЯ2151",{"$f":"'[1]5 кл.'!G4","v":5},"2007-12-06",{"$f":"'[1]5 кл.'!I4","v":"жен"},36,null,36,70,"призер",{"$f":"'[1]5 кл.'!J4","v":"Зайнуллина Зелфия Аделзяновна"},{"$f":"'[1]5 кл.'!K4","v":"Муниципальное бюджетное общеобразовательное учреждение \"Пелевская средняя общеобразовательная школа\" Лаишевского муниципального района Республики Татарстан"}]
[{"$f":"'[1]5 кл.'!A5","v":2},{"$f":"'[1]5 кл.'!B5","v":"Лаишевский "},{"$f":"'[1]5 кл.'!C5","v":"Муниципальное бюджетное общеобразовательное учреждение \"Малоелгинская средняя общеобразовательная школа\" "},"ТЯ2152",{"$f":"'[1]5 кл.'!G5","v":5},{"$f":"'[1]5 кл.'!H5","v":"2007-06-20"},{"$f":"'[1]5 кл.'!I5","v":"жен"},67,null,67,70,"победитель",{"$f":"'[1]5 кл.'!J5","v":"Вагизова Рузиля Ахметовна"},{"$f":"'[1]5 кл.'!K5","v":"Муниципальное бюджетное общеобразовательное учреждение \"Малоелгинская средняя общеобразовательная школа\" "}]
[{"$f":"'[1]5 кл.'!A6","v":3},{"$f":"'[1]5 кл.'!B6","v":"Лаишевский"},{"$f":"'[1]5 кл.'!C6","v":"Муницмпальное бюджетное  общеобразовательное учереждение \"Кирбинская средняя общеобразовательная школа\""},"ТЯ2153",{"$f":"'[1]5 кл.'!G6","v":5},"2007-07-30",{"$f":"'[1]5 кл.'!I6","v":"женский"},15,null,15,70,"участник",{"$f":"'[1]5 кл.'!J6","v":"Закирова Рузиля Минвалеевна"},{"$f":"'[1]5 кл.'!K6","v":"Муницмпальное бюджетное  общеобразовательное учереждение \"Кирбинская средняя общеобразовательная школа\""}]
[{"$f":"'[1]5 кл.'!A7","v":4},{"$f":"'[1]5 кл.'!B7","v":"Лаишевский"},{"$f":"'[1]5 кл.'!C7","v":"Муниципальное бюджетное общеобразовательное учреждение \"Именьковская средняя общеобразовательная школа\""},"ТЯ2154",{"$f":"'[1]5 кл.'!G7","v":5},"2007-09-07",{"$f":"'[1]5 кл.'!I7","v":"жен"},40,null,40,70,"призер",{"$f":"'[1]5 кл.'!J7","v":"Зиганшина Г.Н."},{"$f":"'[1]5 кл.'!K7","v":"Муниципальное бюджетное общеобразовательное учреждение \"Именьковская средняя общеобразовательная школа\""}]
[{"$f":"'[1]5 кл.'!A8","v":5},{"$f":"'[1]5 кл.'!B8","v":"Лаишевский муниципальный район"},{"$f":"'[1]5 кл.'!C8","v":"МБОУ \"Атабаевская СОШ имени Героя РФ Ахметшина М.Р.\""},"ТЯ2155",{"$f":"'[1]5 кл.'!G8","v":5},"2007-11-07",{"$f":"'[1]5 кл.'!I8","v":"женский"},27,null,27,70,"участник",{"$f":"'[1]5 кл.'!J8","v":"Шарапова Илсояр Давлятовна"},{"$f":"'[1]5 кл.'!K8","v":"МБОУ \"Атабаевская СОШ имени Героя РФ Ахметшина М.Р.\""}]

{"sheet":"6 кл.","index":2,"n_rows":8,"n_cols":14,"rows_kept":8,"merged":[[0,0,0,8]]}
["Итоговый протокол по итогам муниципального этапа ВсОШ/РОШ  по предмету татарский язык                                                                                                     Лаишевского муниципального района в 2018-2019 учебном году                                                 \n"]
[]
["№ п/п","Муниципалитет","Полное наименование образовательного учреждения (по уставу)","шифр","Класс","Дата рождения","Пол","Балл","Апеляционный балл","Итоговый балл","Максимальный балл","Статус","Фамилия, имя, отчество педагога, подготовившего участника олимпиады","Полное наименование образовательного учреждения (по уставу)"]
[1,{"$f":"'[1]6 кл.'!B5","v":"Лаишевский"},{"$f":"'[1]6 кл.'!C5","v":"Муниципальное бюджетное общеобразовательное учреждение \"Пелевская средняя общеобразовательная школа\" Лаишевского муниципального района Республики Татарстан"},"ТЯ2162",{"$f":"'[1]6 кл.'!G5","v":6},{"$f":"'[1]6 кл.'!H5","v":"2006-05-15"},"м",33,null,33,65,"призер",{"$f":"'[1]6 кл.'!J5","v":"Зайнуллина Зелфия Аделзяновна"},{"$f":"'[1]6 кл.'!K5","v":"Муниципальное бюджетное общеобразовательное учреждение \"Пелевская средняя общеобразовательная школа\" Лаишевского муниципального района Республики Татарстан"}]
[2,{"$f":"'[1]6 кл.'!B6","v":"Лаишевский"},{"$f":"'[1]6 кл.'!C6","v":"Муниципальное бюджетное общеобразовательное учреждение \"Малоелгинская средняя общеобразовательная школа\" "},"ТЯ2163",{"$f":"'[1]6 кл.'!G6","v":6},{"$f":"'[1]6 кл.'!H6","v":"2005-09-15"},"ж",62,null,62,65,"победитель",{"$f":"'[1]6 кл.'!J6","v":"Вагизова Рузиля Ахметовна"},{"$f":"'[1]6 кл.'!K6","v":"Муниципальное бюджетное общеобразовательное учреждение \"Малоелгинская средняя общеобразовательная школа\" "}]
[3,{"$f":"'[1]6 кл.'!B7","v":"Лаишевский"},{"$f":"'[1]6 кл.'!C7","v":"Муницмпальное бюджетное  общеобразовательное учереждение \"Кирбинская средняя общеобразовательная школа\""},"ТЯ2164",{"$f":"'[1]6 кл.'!G7","v":6},"2006-07-07","ж",34.5,null,34.5,65,"призер",{"$f":"'[1]6 кл.'!J7","v":"Закирова Рузиля Минвалеевна"},{"$f":"'[1]6 кл.'!K7","v":"Муницмпальное бюджетное  общеобразовательное учереждение \"Кирбинская средняя общеобразовательная школа\""}]
[4,{"$f":"'[1]6 кл.'!B8","v":"Лаишевский"},{"$f":"'[1]6 кл.'!C8","v":"Муниципальное бюджетное общеобразовательное учреждение \"Именьковская средняя общеобразовательная школа\""},"ТЯ2165",{"$f":"'[1]6 кл.'!G8","v":6},"2006-02-03","ж",46,null,46,65,"призер",{"$f":"'[1]6 кл.'!J8","v":"Зиганшина Гузель Нурмухаметовна"},{"$f":"'[1]6 кл.'!K8","v":"Муниципальное бюджетное общеобразовательное учреждение \"Именьковская средняя общеобразовательная школа\""}]
[5,{"$f":"'[1]6 кл.'!B9","v":"Лаишевский муниципальный район"},{"$f":"'[1]6 кл.'!C9","v":"МБОУ \"Атабаевская СОШ имени Героя РФ Ахметшина М.Р.\""},"ТЯ2166",{"$f":"'[1]6 кл.'!G9","v":6},null,"ж",46,null,46,65,"призер",{"$f":"'[1]6 кл.'!J9","v":"Шарапова Илсояр Давлятовна"},{"$f":"'[1]6 кл.'!K9","v":"МБОУ \"Атабаевская СОШ имени Героя РФ Ахметшина М.Р.\""}]

{"sheet":"7 кл.","index":3,"n_rows":9,"n_cols":14,"rows_kept":9,"merged":[[0,0,0,8]]}
["Итоговый протокол по итогам муниципального этапа ВсОШ/РОШ  по предмету  татарский язык                                                                Лаишевского муниципального района в 2018-2019 учебном году                                                 \n"]
[]
["№ п/п","Муниципалитет","Полное наименование образовательного учреждения (по уставу)","Шифр","Класс","Дата рождения","Пол","Балл","Апеляционный балл","Итоговый балл","Максимальный балл","Статус","Фамилия, имя, отчество педагога, подготовившего участника олимпиады","Полное наименование образовательного учреждения (по уставу)"]
[{"$f":"'[1]7 кл.'!A4","v":1},{"$f":"'[1]7 кл.'!B4","v":"Лаишевский"},{"$f":"'[1]7 кл.'!C4","v":"Муниципальное бюджетное общеобразовательное учреждение \"Тат.Янтыковская основная общеобразовательная школа\" Лаишевского муниципального района Республики Татарстан"},"ТЯ2171",{"$f":"'[1]7 кл.'!G4","v":7},"26..01.2005",{"$f":"'[1]7 кл.'!I4","v":"ж"},41,null,41,79,"призер",{"$f":"'[1]7 кл.'!J4","v":"Габидуллина Флуса Рагиповна"},{"$f":"'[1]7 кл.'!K4","v":"Муниципальное бюджетное общеобразовательное учреждение \"Тат.Янтыковская основная общеобразовательная школа\" Лаишевского муниципального района Республики Татарстан"}]
[{"$f":"'[1]7 кл.'!A5","v":2},{"$f":"'[1]7 кл.'!B5","v":"Лаишевский"},{"$f":"'[1]7 кл.'!C5","v":"Муниципальное бюджетное общеобразовательное учреждение \"Пелевская средняя общеобразовательная школа\" Лаишевского муниципального района Республики Татарстан"},"ТЯ2172",{"$f":"'[1]7 кл.'!G5","v":7},"2005-09-05",{"$f":"'[1]7 кл.'!I5","v":"муж"},24,null,24,79,"участник",{"$f":"'[1]7 кл.'!J5","v":"Зайнуллина Зелфия Аделзяновна"},{"$f":"'[1]7 кл.'!K5","v":"Муниципальное бюджетное общеобразовательное учреждение \"Пелевская средняя общеобразовательная школа\" Лаишевского муниципального района Республики Татарстан"}]
[{"$f":"'[1]7 кл.'!A6","v":3},{"$f":"'[1]7 кл.'!B6","v":"Лаишевский"},{"$f":"'[1]7 кл.'!C6","v":"Муниципальное бюджетное общеобразовательное учреждение \"Пелевская средняя общеобразовательная школа\" Лаишевского муниципального района Республики Татарстан"},"ТЯ2173",{"$f":"'[1]7 кл.'!G6","v":7},"2005-12-15",{"$f":"'[1]7 кл.'!I6","v":"жен"},14,null,14,79,"участник",{"$f":"'[1]7 кл.'!J6","v":"Зайнуллина Зелфия Аделзяновна"},{"$f":"'[1]7 кл.'!K6","v":"Муниципальное бюджетное общеобразовательное учреждение \"Пелевская средняя общеобразовательная школа\" Лаишевского муниципального района Республики Татарстан"}]
[{"$f":"'[1]7 кл.'!A7","v":4},{"$f":"'[1]7 кл.'!B7","v":"Лаишевский "},{"$f":"'[1]7 кл.'!C7","v":"Муниципальное бюджетное общеобразовательное учреждение \"Малоелгинская средняя общеобразовательная школа\" "},"ТЯ2174",{"$f":"'[1]7 кл.'!G7","v":7},"2005-11-01",{"$f":"'[1]7 кл.'!I7","v":"муж"},11,null,11,79,"участник",{"$f":"'[1]7 кл.'!J7","v":"Шарапова Альфия Габдрафиковна"},{"$f":"'[1]7 кл.'!K7","v":"Муниципальное бюджетное общеобразовательное учреждение \"Малоелгинская средняя общеобразовательная школа\" "}]
[{"$f":"'[1]7 кл.'!A8","v":5},{"$f":"'[1]7 кл.'!B8","v":"Лаишевский"},{"$f":"'[1]7 кл.'!C8","v":"Муницмпальное бюджетное  общеобразовательное учереждение \"Кирбинская средняя общеобразовательная школа\""},"ТЯ2175",{"$f":"'[1]7 кл.'!G8","v":7},"2005-03-27",{"$f":"'[1]7 кл.'!I8","v":"женский"},42,null,42,79,"победитель",{"$f":"'[1]7 кл.'!J8","v":"Закирова Рузиля Минвалеевна"},{"$f":"'[1]7 кл.'!K8","v":"Муницмпальное бюджетное  общеобразовательное учереждение \"Кирбинская средняя общеобразовательная школа\""}]
[{"$f":"'[1]7 кл.'!A9","v":6},{"$f":"'[1]7 кл.'!B9","v":"Лаишевский"},{"$f":"'[1]7 кл.'!C9","v":"Муниципальное бюджетное общеобразовательное учреждение \"Именьковская средняя общеобразовательная школа\""},"ТЯ2176",{"$f":"'[1]7 кл.'!G9","v":7},"2005-12-22",{"$f":"'[1]7 кл.'!I9","v":"жен"},40,null,40,79,"призер",{"$f":"'[1]7 кл.'!J9","v":"Сунгатуллина Сирена Анваровна"},{"$f":"'[1]7 кл.'!K9","v":"Муниципальное бюджетное общеобразовательное учреждение \"Именьковская средняя общеобразовательная школа\""}]

{"sheet":"8 кл.","index":4,"n_rows":8,"n_cols":14,"rows_kept":8,"merged":[[0,0,0,7]]}
["Итоговый протокол по итогам муниципального этапа ВсОШ/РОШ  по предмету татарский язык                                                                                                    Лаишевского муниципального района в 2018-2019 учебном году                                                 \n"]
[]
["№ п/п","Муниципалитет","Полное наименование образовательного учреждения (по уставу)","Шифр","Класс","Дата рождения","Пол","Балл","Апеляционный балл","Итоговый балл","Максимальный балл","Статус","Фамилия, имя, отчество педагога, подготовившего участника олимпиады","Полное наименование образовательного учреждения (по уставу)"]
[{"$f":"'[1]8 кл.'!A4","v":1},{"$f":"'[1]8 кл.'!B4","v":"Лаишевский"},{"$f":"'[1]8 кл.'!C4","v":"Муниципальное бюджетное общеобразовательное учреждение \"Тат.Янтыковская основная общеобразовательная школа\" Лаишевского муниципального района Республики Татарстан"},"ТЯ2181",{"$f":"'[1]8 кл.'!G4","v":8},"2004-10-01",{"$f":"'[1]8 кл.'!I4","v":"ж"},36,null,36,69,"призер",{"$f":"'[1]8 кл.'!J4","v":"Насырова Альфия Хамисовна"},{"$f":"'[1]8 кл.'!K4","v":"Муниципальное бюджетное общеобразовательное учреждение \"Тат.Янтыковская основная общеобразовательная школа\" Лаишевского муниципального района Республики Татарстан"}]
[2,{"$f":"'[1]8 кл.'!B6","v":"Лаишевский"},{"$f":"'[1]8 кл.'!C6","v":"Муниципальное бюджетное общеобразовательное учреждение «Державинская основная общеобразовательная школа» Лаишевского муниципального района Республика Татрстан"},"ТЯ2183",{"$f":"'[1]8 кл.'!G6","v":8},"102.11.2004",{"$f":"'[1]8 кл.'!I6","v":"жен"},53,null,53,69,"победитель",{"$f":"'[1]8 кл.'!J6","v":"Гибадуллина Фирдавус Сафьяновна"},{"$f":"'[1]8 кл.'!K6","v":"Муниципальное бюджетное общеобразовательное учреждение «Державинская основная общеобразовательная школа» Лаишевского муниципального района   Республика Татарстан"}]
[3,{"$f":"'[1]8 кл.'!B7","v":"Лаишевский "},{"$f":"'[1]8 кл.'!C7","v":"Муниципальное бюджетное общеобразовательное учреждение \"Малоелгинская средняя общеобразовательная школа\" "},"ТЯ2184",{"$f":"'[1]8 кл.'!G7","v":8},"2005-01-13",{"$f":"'[1]8 кл.'!I7","v":"жен"},40,null,40,69,"призер",{"$f":"'[1]8 кл.'!J7","v":"Вагизова Рузиля Ахметовна"},{"$f":"'[1]8 кл.'!K7","v":"Муниципальное бюджетное общеобразовательное учреждение \"Малоелгинская средняя общеобразовательная школа\" "}]
[4,{"$f":"'[1]8 кл.'!B8","v":"Лаишевский"},{"$f":"'[1]8 кл.'!C8","v":"Муницмпальное бюджетное  общеобразовательное учереждение \"Кирбинская средняя общеобразовательная школа\""},"ТЯ2185",{"$f":"'[1]8 кл.'!G8","v":8},"2005-01-07",{"$f":"'[1]8 кл.'!I8","v":"жен"},39,null,39,69,"призер",{"$f":"'[1]8 кл.'!J8","v":"Закирова Рузиля Минвалеевна"},{"$f":"'[1]8 кл.'!K8","v":"Муницмпальное бюджетное  общеобразовательное учереждение \"Кирбинская средняя общеобразовательная школа\""}]
[5,{"$f":"'[1]8 кл.'!B9","v":"Лаишевский муниципальный район"},{"$f":"'[1]8 кл.'!C9","v":"МБОУ \"Атабаевская СОШ имени Героя РФ Ахметшина М.Р.\""},"ТЯ2186",{"$f":"'[1]8 кл.'!G9","v":8},"2005-03-08",{"$f":"'[1]8 кл.'!I9","v":"женский"},45,null,45,69,"призер",{"$f":"'[1]8 кл.'!J9","v":"Хамитова Ландыш Талгатовна"},{"$f":"'[1]8 кл.'!K9","v":"МБОУ \"Атабаевская СОШ имени Героя РФ Ахметшина М.Р.\""}]

{"sheet":"9 кл.","index":5,"n_rows":8,"n_cols":14,"rows_kept":8,"merged":[[0,0,0,7]]}
["Итоговый протокол по итогам муниципального этапа ВсОШ/РОШ  по предмету татарский язык                                                                                                    Лаишевского муниципального района в 2018-2019 учебном году                                                 \n"]
[]
["№ п/п","Муниципалитет","Полное наименование образовательного учреждения (по уставу)","Шифр","Класс","Дата рождения","Пол","Балл","Апеляционный балл","Итоговый балл","Максимальный балл","Статус","Фамилия, имя, отчество педагога, подготовившего участника олимпиады","Полное наименование образовательного учреждения (по уставу)"]
[{"$f":"'[1]9 кл.'!A4","v":1},{"$f":"'[1]9 кл.'!B4","v":"Лаишевский"},{"$f":"'[1]9 кл.'!C4","v":"Муниципальное бюджетное общеобразовательное учреждение \"Пелевская средняя общеобразовательная школа\" Лаишевского муниципального района Республики Татарстан"},"ТЯ2191",{"$f":"'[1]9 кл.'!G4","v":9},{"$f":"'[1]9 кл.'!H4","v":"2004-01-13"},{"$f":"'[1]9 кл.'!I4","v":"жен"},37,null,37,69,"призер",{"$f":"'[1]9 кл.'!J4","v":"Зайнуллина Зелфия Аделзяновна"},{"$f":"'[1]9 кл.'!K4","v":"Муниципальное бюджетное общеобразовательное учреждение \"Пелевская средняя общеобразовательная школа\" Лаишевского муниципального района Республики Татарстан"}]
[{"$f":"'[1]9 кл.'!A5","v":2},{"$f":"'[1]9 кл.'!B5","v":"Лаишевский"},{"$f":"'[1]9 кл.'!C5","v":"Муниципальное бюджетное общеобразовательное учреждение \"Пелевская средняя общеобразовательная школа\" Лаишевского муниципального района Республики Татарстан"},"ТЯ2192",{"$f":"'[1]9 кл.'!G5","v":9},{"$f":"'[1]9 кл.'!H5","v":"2003-10-29"},{"$f":"'[1]9 кл.'!I5","v":"жен"},36,null,36,69,"призер",{"$f":"'[1]9 кл.'!J5","v":"Зайнуллина Зелфия Аделзяновна"},{"$f":"'[1]9 кл.'!K5","v":"Муниципальное бюджетное общеобразовательное учреждение \"Пелевская средняя общеобразовательная школа\" Лаишевского муниципального района Республики Татарстан"}]
[{"$f":"'[1]9 кл.'!A7","v":4},{"$f":"'[1]9 кл.'!B7","v":"Лаишевский"},{"$f":"'[1]9 кл.'!C7","v":"Муниципальное бюджетное общеобразовательное учреждение «Державинская основная общеобразовательная школа» Лаишевского муниципального района         Республика Татрстан"},"ТЯ2194",{"$f":"'[1]9 кл.'!G7","v":9},{"$f":"'[1]9 кл.'!H7","v":"2004-02-12"},{"$f":"'[1]9 кл.'!I7","v":"жен"},66,null,66,69,"победитель",{"$f":"'[1]9 кл.'!J7","v":"Гибадуллина Фирдавус Сафьяновна"},{"$f":"'[1]9 кл.'!K7","v":"Муниципальное бюджетное общеобразовательное учреждение «Державинская основная общеобразовательная школа» Лаишевского муниципального района                                                                                        Республика Татрстан"}]
[{"$f":"'[1]9 кл.'!A8","v":5},{"$f":"'[1]9 кл.'!B8","v":"Лаишевский"},{"$f":"'[1]9 кл.'!C8","v":"Муниципальное бюджетное общеобразовательное учреждение \"Малоелгинская средняя общеобразовательная школа\""},"ТЯ2195",{"$f":"'[1]9 кл.'!G8","v":9},{"$f":"'[1]9 кл.'!H8","v":"2002-12-20"},{"$f":"'[1]9 кл.'!I8","v":"жен"},39,null,39,69,"призер",{"$f":"'[1]9 кл.'!J8","v":"Хамидуллина Фирдина Мансуровна"},{"$f":"'[1]9 кл.'!K8","v":"Муниципальное бюджетное общеобразовательное учреждение \"Малоелгинская средняя общеобразовательная школа\" "}]
[{"$f":"'[1]9 кл.'!A9","v":6},{"$f":"'[1]9 кл.'!B9","v":"Лаишевский"},{"$f":"'[1]9 кл.'!C9","v":"Муниципальное бюджетное общеобразовательное учреждение \"Именьковская средняя общеобразовательная школа\""},"ТЯ2196",{"$f":"'[1]9 кл.'!G9","v":9},{"$f":"'[1]9 кл.'!H9","v":"2003-01-20"},{"$f":"'[1]9 кл.'!I9","v":"жен"},40,null,40,69,"призер",{"$f":"'[1]9 кл.'!J9","v":"Шаймухаметова Алия Мухаметзяновна"},{"$f":"'[1]9 кл.'!K9","v":"Муниципальное бюджетное общеобразовательное учреждение \"Именьковская средняя общеобразовательная школа\""}]

{"sheet":"10 кл.","index":6,"n_rows":6,"n_cols":14,"rows_kept":6,"merged":[[0,0,0,7]]}
["Итоговый протокол по итогам муниципального этапа ВсОШ/РОШ  по предмету  татарский язык                                                                                                     Лаишевского муниципального района в 2018-2019 учебном году                                                 \n"]
[]
["№ п/п","Муниципалитет","Полное наименование образовательного учреждения (по уставу)","шифр","Класс","Дата рождения","Пол","Балл","Апеляционный балл","Итоговый балл","Максимальный балл","Статус","Фамилия, имя, отчество педагога, подготовившего участника олимпиады","Полное наименование образовательного учреждения (по уставу)"]
[{"$f":"'[1]10 кл.'!A4","v":1},{"$f":"'[1]10 кл.'!B4","v":"Лаишевский"},{"$f":"'[1]10 кл.'!C4","v":"Муниципальное бюджетное общеобразовательное учреждение \"Малоелгинская средняя общеобразовательная школа\" "},"ТЯ21101",{"$f":"'[1]10 кл.'!G4","v":10},{"$f":"'[1]10 кл.'!H4","v":"2001-11-12"},{"$f":"'[1]10 кл.'!I4","v":"жен"},75,null,75,76,"победитель",{"$f":"'[1]10 кл.'!J4","v":"Вагизова Рузиля Ахметовна"},{"$f":"'[1]10 кл.'!K4","v":"Муниципальное бюджетное общеобразовательное учреждение \"Малоелгинская средняя общеобразовательная школа\" "}]
[2,{"$f":"'[1]10 кл.'!B5","v":"Лаишевский"},{"$f":"'[1]10 кл.'!C5","v":"Муниципальное бюджетное общеобразовательное учреждение \"Именьковская средняя общеобразовательная школа\""},"ТЯ21102",{"$f":"'[1]10 кл.'!G5","v":10},"2003-06-20",{"$f":"'[1]10 кл.'!I5","v":"муж"},54,null,54,76,"призер",{"$f":"'[1]10 кл.'!J5","v":"Шаймухаметова Алия Мухаметзяновна"},{"$f":"'[1]10 кл.'!K5","v":"Муниципальное бюджетное общеобразовательное учреждение \"Именьковская средняя общеобразовательная школа\""}]
[3,{"$f":"'[1]10 кл.'!B6","v":"Лаишевский муниципальный район"},{"$f":"'[1]10 кл.'!C6","v":"МБОУ \"Атабаевская СОШ имени Героя РФ Ахметшина М.Р.\""},"ТЯ21103",{"$f":"'[1]10 кл.'!G6","v":10},{"$f":"'[1]10 кл.'!H6","v":"2003-01-21"},{"$f":"'[1]10 кл.'!I6","v":"женский"},69,null,69,76,"призер",{"$f":"'[1]10 кл.'!J6","v":"Шарапова Илсояр Давлятовна"},{"$f":"'[1]10 кл.'!K6","v":"МБОУ \"Атабаевская СОШ имени Героя РФ Ахметшина М.Р.\""}]

{"sheet":"11 кл.","index":7,"n_rows":5,"n_cols":14,"rows_kept":5,"merged":[[0,0,0,7]]}
["Итоговый протокол по итогам муниципального этапа ВсОШ/РОШ  по предмету татарский язык                                                                                                      Лаишевского муниципального района в 2018-2019 учебном году                                                 \n"]
[]
["№ п/п","Муниципалитет","Полное наименование образовательного учреждения (по уставу)","Шифр","Класс","Дата рождения","Пол","Балл","Апеляционный балл","Итоговый балл","Максимальный балл","Статус","Фамилия, имя, отчество педагога, подготовившего участника олимпиады","Полное наименование образовательного учреждения (по уставу)"]
[{"$f":"'[1]11 кл.'!A4","v":1},{"$f":"'[1]11 кл.'!B4","v":"Лаишевский "},{"$f":"'[1]11 кл.'!C4","v":"Муниципальное бюджетное общеобразовательное учреждение \"Пелевская средняя общеобразовательная школа\" Лаишевского муниципального района Республики Татарстан"},"ТЯ21111",{"$f":"'[1]11 кл.'!G4","v":11},{"$f":"'[1]11 кл.'!H4","v":"2002-07-18"},{"$f":"'[1]11 кл.'!I4","v":"женский"},72,null,72,75,"победитель",{"$f":"'[1]11 кл.'!J4","v":"Шагитова Лейсан Равилевна"},{"$f":"'[1]11 кл.'!K4","v":"Муниципальное бюджетное общеобразовательное учреждение \"Пелевская средняя общеобразовательная школа\" Лаишевского муниципального района Республики Татарстан"}]
[{"$f":"'[1]11 кл.'!A5","v":2},{"$f":"'[1]11 кл.'!B5","v":"Лаишевский"},{"$f":"'[1]11 кл.'!C5","v":"Муниципальное бюджетное общеобразовательное учреждение \"Малоелгинская средняя общеобразовательная школа\" "},"ТЯ21112",{"$f":"'[1]11 кл.'!G5","v":11},{"$f":"'[1]11 кл.'!H5","v":"2001-11-18"},{"$f":"'[1]11 кл.'!I5","v":"жен"},48,null,48,75,"призер",{"$f":"'[1]11 кл.'!J5","v":"Сунгатова Гулуса Миннулловна"},{"$f":"'[1]11 кл.'!K5","v":"Муниципальное бюджетное общеобразовательное учреждение \"Малоелгинская средняя общеобразовательная школа\" "}]